bitfinex/quotes_ETHUSD_20251110
["timestamp","ask_amount","ask_price","bid_price","bid_amount"]
[1762753213154,0.002,3601.6,3601.5,5.55612348]
[1762753213374,0.002,3601.6,3601.5,6.05302348]
[1762753216968,0.002,3601.6,3601.5,6.08385681]
[1762753218668,1e-08,3601.7,3601.6,5.80611762]
[1762753218870,0.002,3602.4,3601.6,5.80611762]
[1762753218871,1e-08,3602.0,3601.9,4.9020285]
[1762753219085,1e-08,3602.0,3601.9,5.80588637]
[1762753219418,0.002,3602.4,3602.0,4.84840929]
[1762753219603,0.002,3602.4,3602.0,11.44178409]
[1762753220911,0.002,3602.4,3602.0,10.94488409]
[1762753221105,0.002,3602.4,3602.0,15.68762179]
[1762753221885,0.002,3602.4,3602.0,9.14778912]
[1762753222404,0.002,3602.4,3602.0,10.05164699]
[1762753222586,0.002,3602.4,3602.0,8.55264699]
[1762753224583,0.002,3602.4,3602.0,8.9456467]
[1762753224789,0.002,3602.4,3602.3,7.0295082]
[1762753225002,0.002,3602.4,3602.3,10.44349102]
[1762753225323,0.002,3602.4,3602.3,10.93549102]
[1762753225626,0.002,3602.4,3602.3,11.32849073]
[1762753226189,0.002,3602.4,3602.3,10.83649073]
[1762753226919,0.002,3602.4,3602.3,12.09620273]
[1762753227103,0.002,3602.4,3602.3,12.58820273]
[1762753227886,0.002,3602.4,3602.3,19.05820273]
[1762753233037,0.4892,3603.5,3603.1,1.665216]
[1762753233245,0.4892,3603.5,3603.4,3.18066079]
[1762753233605,0.012,3603.9,3603.6,3.18044302]
[1762753233842,0.012,3603.9,3603.4,2.67448562]
[1762753233843,0.012,3603.9,3603.8,1.665216]
[1762753234004,0.6873,3603.9,3603.8,0.405504]
[1762753234209,1.1653,3603.9,3603.8,0.405504]
[1762753236139,1.81483767,3603.9,3603.6,0.405504]
[1762753236341,0.4892,3603.8,3603.1,1.665216]
[1762753236709,0.478,3603.2,3603.1,1.665216]
[1762753237138,0.478,3603.2,3603.1,3.18089186]
[1762753237337,0.478,3603.2,3603.1,4.44060386]
[1762753237842,0.478,3603.2,3603.1,1.665216]
[1762753238041,0.9672,3603.2,3603.1,1.665216]
[1762753238207,0.9672,3603.2,3603.1,4.44060386]
[1762753238402,0.9672,3603.2,3603.1,1.665216]
[1762753238603,0.9672,3603.2,3603.1,1.259712]
[1762753238808,1.22319569,3603.2,3602.4,7.21517023]
[1762753239004,0.74519569,3603.1,3602.4,7.2152264]
[1762753239243,0.74519569,3603.1,3602.4,4.43931746]
[1762753239244,0.1197,3602.5,3602.4,4.43931746]
[1762753239542,0.3058,3602.5,3602.2,4.43931746]
[1762753239845,0.4744,3602.3,3602.2,4.43931746]
[1762753240005,0.4744,3602.3,3602.0,4.44031746]
[1762753240211,0.1232,3602.1,3602.0,4.44031746]
[1762753240410,0.478,3602.1,3602.0,4.44031746]
[1762753240612,0.9672,3602.1,3602.0,0.001]
[1762753241010,1.22364964,3602.1,3602.0,0.001]
[1762753244271,0.25644964,3602.1,3602.0,1.20969333]
[1762753244413,1.22364964,3602.1,3602.0,0.001]
[1762753245438,0.73444964,3602.1,3602.0,0.406504]
[1762753245844,0.73444964,3602.1,3602.0,3.18273942]
[1762753246046,0.73444964,3602.1,3602.0,0.406504]
[1762753246351,1.22364964,3602.1,3602.0,0.406504]
[1762753246876,1.22364964,3602.1,3602.0,0.001]
[1762753251600,0.1861,3602.5,3602.0,2.4911586]
[1762753251758,0.4556,3603.0,3602.0,2.4911586]
[1762753251759,0.6509,3602.8,3602.3,0.405504]
[1762753251967,0.25667056,3602.7,3602.6,2.77572405]
[1762753252294,0.4643,3602.7,3602.6,2.77572405]
[1762753253610,0.4643,3602.7,3602.6,3.21807257]
[1762753253814,0.4643,3602.7,3602.6,0.44234852]
[1762753254538,0.4643,3602.7,3602.6,3.21812157]
[1762753254895,0.4643,3602.7,3602.6,0.44234852]
[1762753255101,0.9552,3602.7,3602.5,1.665216]
[1762753255444,0.1953,3602.8,3602.5,0.405504]
[1762753255445,0.6135,3602.6,3602.5,0.405504]
[1762753255893,0.6135,3602.6,3602.5,1.665216]
[1762753256538,0.6135,3602.6,3602.5,3.1813541]
[1762753256701,0.6135,3602.6,3602.5,0.405504]
[1762753257118,0.6135,3602.6,3602.5,8.27706609]
[1762753257502,0.1226,3602.6,3602.5,8.27706609]
[1762753257840,0.6135,3602.6,3602.5,5.50121599]
[1762753258042,0.1226,3602.6,3602.5,8.27706609]
[1762753258228,0.6135,3602.6,3602.5,5.50121599]
[1762753258395,0.6135,3602.6,3602.5,3.83599999]
[1762753260006,0.6135,3602.6,3602.5,6.61185009]
[1762753260207,0.194,3602.9,3602.5,3.83599999]
[1762753260405,0.194,3602.9,3602.6,3.83599999]
[1762753260631,0.4909,3602.8,3602.6,6.61172849]
[1762753260934,0.4808,3602.7,3602.6,3.83599999]
[1762753261350,0.9717,3602.7,3602.6,3.83599999]
[1762753261851,1.2285226,3602.7,3602.6,3.83599999]
[1762753262151,0.9717,3602.7,3602.6,3.83599999]
[1762753264241,1.22859403,3602.7,3602.6,3.83599999]
[1762753265238,0.9717,3602.7,3602.6,2.77577305]
[1762753265425,0.4808,3602.7,3602.6,2.77577305]
[1762753266114,0.9717,3602.7,3602.1,0.44234852]
[1762753266313,0.4771,3602.2,3602.1,4.44137435]
[1762753266513,0.194,3602.9,3602.1,6.27717671]
[1762753266827,0.194,3602.9,3602.6,2.77576455]
[1762753267141,0.4808,3602.7,3602.4,2.77591565]
[1762753267344,0.4909,3602.8,3602.3,3.18150615]
[1762753267638,0.194,3602.9,3602.1,1.259712]
[1762753267639,0.1075,3602.4,3602.2,0.405504]
[1762753267836,0.4909,3602.7,3602.4,2.77591744]
[1762753268041,0.4909,3602.6,3602.4,2.77591744]
[1762753268335,0.4808,3602.5,3602.4,3.18143115]
[1762753268536,0.4909,3602.8,3602.5,2.77579726]
[1762753268845,0.4808,3602.6,3602.5,2.77579726]
[1762753269336,0.9717,3602.6,3602.5,2.77579726]
[1762753269640,0.9717,3602.6,3602.3,0.001]
[1762753269641,1.22923696,3602.6,3602.3,0.001]
[1762753269839,0.1075,3602.4,3602.3,2.77699985]
[1762753270144,0.196,3602.9,3602.3,0.001]
[1762753270356,0.25754594,3602.8,3602.6,2.77571289]
[1762753270655,0.25754594,3602.7,3602.5,2.77580176]
[1762753270955,0.196,3602.9,3602.7,2.77566856]
[1762753271157,0.73834842,3602.8,3602.3,0.001]
[1762753271365,0.25755081,3602.7,3602.4,0.84785252]
[1762753271656,0.4808,3602.8,3602.5,2.77580017]
[1762753271873,0.25756674,3602.7,3602.6,2.77576822]
[1762753272256,0.25756674,3602.7,3602.6,3.27346822]
[1762753272451,0.25756674,3602.7,3602.6,2.77576822]
[1762753272636,1.22926674,3602.7,3602.6,2.77576822]
[1762753275331,0.002,3602.9,3602.8,2.77561896]
[1762753275529,0.002,3602.9,3602.8,5.60660502]
[1762753275755,0.002,3602.9,3602.8,6.07220502]
[1762753276031,0.002,3602.9,3602.8,6.03908796]
[1762753276257,0.002,3602.9,3602.6,7.5784185]
[1762753276258,1.1677,3602.9,3602.6,2.77570624]
[1762753276461,0.0998,3602.7,3602.6,4.03548505]
[1762753277658,0.5907,3602.7,3602.6,4.03548505]
[1762753277861,0.5907,3602.7,3602.6,2.77577305]
[1762753278359,0.196,3602.9,3602.8,2.77561896]
[1762753278653,0.6869,3602.9,3602.8,2.77561896]
[1762753278859,1.1677,3602.9,3602.8,2.77561896]
[1762753279155,1.1677,3602.9,3602.8,3.44368902]
[1762753279659,1.1677,3602.9,3602.4,1.259712]
[1762753279830,0.487,3602.8,3602.7,2.775696]
[1762753280030,0.9678,3602.8,3602.7,2.775696]
[1762753280225,0.4808,3602.8,3602.7,2.775696]
[1762753280431,0.002,3602.9,3602.8,2.77561896]
[1762753280647,0.4828,3602.9,3602.8,2.77561896]
[1762753280854,0.002,3602.9,3602.8,5.5632031]
[1762753281027,0.002,3602.9,3602.8,11.12451509]
[1762753281230,0.002,3603.3,3603.2,3.18081483]
[1762753281435,0.002,3603.3,3603.2,9.76889283]
[1762753281754,0.002,3604.0,3603.2,9.76889283]
[1762753281755,0.002,3604.0,3603.5,2.77507978]
[1762753281925,0.002,3604.0,3603.5,10.44008359]
[1762753282125,0.002,3604.0,3603.5,11.35946394]
[1762753282389,0.002,3604.0,3603.5,6.731268]
[1762753282730,0.002,3604.0,3603.5,7.196868]
[1762753283267,0.002,3604.0,3603.5,6.74308765]
[1762753283431,0.002,3604.0,3603.5,7.196868]
[1762753284276,0.002,3604.0,3603.5,6.731268]
[1762753284777,0.002,3604.0,3603.5,7.186668]
[1762753286254,0.002,3604.0,3603.5,11.02266799]
[1762753286581,0.002,3604.0,3603.5,10.56888764]
[1762753286964,0.002,3604.0,3603.5,10.97439164]
[1762753287141,0.002,3604.0,3603.5,11.37663383]
[1762753288276,0.002,3604.0,3603.5,12.47339164]
[1762753288483,0.002,3604.0,3603.5,12.87563383]
[1762753289964,0.002,3604.0,3603.5,12.47339164]
[1762753290274,0.002,3604.0,3603.5,12.01799164]
[1762753290654,0.002,3604.0,3603.5,10.51899164]
[1762753290979,0.2095,3603.9,3603.5,10.51899164]
[1762753291182,0.2095,3603.9,3603.5,10.02129164]
[1762753294985,0.012,3603.9,3603.5,10.48949164]
[1762753296163,0.4551,3603.6,3603.5,10.02129164]
[1762753298359,0.4551,3603.6,3603.5,8.27629577]
[1762753299358,0.002,3603.6,3603.5,12.90709171]
[1762753300895,0.002,3603.6,3603.5,12.43889171]
[1762753301072,0.4551,3603.6,3603.5,12.43889171]
[1762753302103,0.002,3603.6,3603.5,12.43889171]
[1762753302597,0.002,3603.6,3603.5,12.90709171]
[1762753303270,0.002,3603.6,3603.5,14.52095789]
[1762753303676,0.002,3603.6,3603.5,14.92320008]
[1762753303996,0.002,3603.6,3603.5,14.52095789]
[1762753305001,0.002,3603.6,3603.5,14.97635789]
[1762753305163,0.002,3603.6,3603.5,15.37860008]
[1762753306695,0.002,3603.6,3603.5,14.52095789]
[1762753307059,0.002,3603.6,3603.5,14.97635789]
[1762753308288,0.002,3603.6,3603.5,14.52095789]
[1762753308816,0.002,3603.6,3603.5,9.89016195]
[1762753308817,0.4988,3603.6,3603.5,9.89016195]
[1762753309223,0.002,3603.6,3603.5,9.89016195]
[1762753309910,0.9742,3603.6,3603.3,1.260712]
[1762753310120,0.4774,3603.6,3603.4,2.77515679]
[1762753310293,0.4754,3603.5,3603.4,4.44037279]
[1762753310488,0.9722,3603.5,3603.4,4.03486879]
[1762753310789,0.9722,3603.5,3603.3,0.001]
[1762753311001,0.5762,3603.4,3603.3,0.001]
[1762753311503,0.83384922,3603.4,3603.3,0.001]
[1762753311812,3.97009307,3603.4,3603.3,0.001]
[1762753312617,1.19493628,3603.4,3603.3,0.001]
[1762753313138,3.97009307,3603.4,3603.3,0.001]
[1762753313308,3.60900601,3603.4,3603.3,0.001]
[1762753316553,0.83384922,3603.4,3603.3,0.001]
[1762753316752,3.60900601,3603.4,3603.3,0.001]
[1762753318214,7.77160195,3603.4,3603.3,0.001]
[1762753321812,6.93806083,3603.0,3602.9,0.001]
[1762753322010,3.51081411,3603.0,3602.9,0.001]
[1762753322232,3.97661411,3603.0,3602.9,0.001]
[1762753323325,1.20114922,3603.0,3602.9,0.001]
[1762753323846,3.97661411,3603.0,3602.9,0.001]
[1762753324522,8.13921005,3603.0,3602.9,0.001]
[1762753325429,8.13921005,3603.0,3602.5,0.001]
[1762753325430,2.77577305,3602.6,3602.5,0.001]
[1762753325761,7.32531821,3602.6,3602.5,0.001]
[1762753325915,7.79111821,3602.6,3602.5,0.001]
[1762753326370,2.77592715,3602.4,3602.3,0.001]
[1762753326534,4.76698837,3602.4,3602.3,0.001]
[1762753326711,5.23278837,3602.4,3602.3,0.001]
[1762753328581,5.23278837,3602.4,3601.1,0.01]
[1762753328582,2.77646666,3601.7,3601.1,0.01]
[1762753328744,4.76412788,3601.7,3601.1,0.01]
[1762753329058,18.28458752,3601.7,3601.1,0.01]
[1762753329256,9.67595973,3601.7,3601.1,0.01]
[1762753329776,14.12199158,3601.7,3601.1,0.01]
[1762753330893,9.67595973,3601.7,3601.1,0.01]
[1762753331044,0.72794922,3601.7,3601.1,0.01]
[1762753331246,0.4703,3601.7,3601.4,2.77668444]
[1762753331458,0.9361,3601.7,3601.1,0.01]
[1762753331673,0.9361,3601.7,3601.2,2.7778429]
[1762753332447,0.9361,3601.7,3601.3,2.77674081]
[1762753333572,0.9361,3601.7,3601.2,0.001]
[1762753333573,8.15859851,3601.7,3601.2,0.001]
[1762753333882,3.71256666,3601.7,3601.2,0.001]
[1762753334279,8.15859851,3601.7,3601.2,0.001]
[1762753334486,3.71256666,3601.7,3601.2,0.001]
[1762753334682,0.9361,3601.7,3601.2,0.001]
[1762753334886,0.4703,3601.7,3601.2,0.001]
[1762753335185,0.4703,3601.7,3601.2,2.77784057]
[1762753335385,3.71256666,3601.7,3601.2,0.001]
[1762753335953,0.9361,3601.7,3601.2,0.001]
[1762753336252,3.71256666,3601.7,3601.2,0.001]
[1762753338260,0.9361,3601.7,3601.2,0.001]
[1762753338461,5.38213185,3601.7,3601.2,0.001]
[1762753338805,0.4703,3601.7,3601.4,2.77662318]
[1762753339322,0.4703,3601.7,3601.2,2.77779219]
[1762753339603,0.9361,3601.7,3601.2,2.77779219]
[1762753340012,3.71256666,3601.7,3601.2,0.001]
[1762753340375,1.19204079,3601.7,3601.2,0.001]
[1762753341105,1.19204079,3601.7,3601.2,2.77779756]
[1762753343122,1.19204079,3601.7,3601.3,2.77677423]
[1762753343270,0.72624079,3601.7,3601.5,2.77659867]
[1762753343476,0.72624079,3601.7,3601.2,0.001]
[1762753343774,1.19204079,3601.7,3601.2,0.001]
[1762753345218,3.96850745,3601.7,3601.2,0.001]
[1762753346073,1.19204079,3601.7,3601.2,0.001]
[1762753346296,1.19204079,3601.7,3601.2,2.77779296]
[1762753346493,1.19204079,3601.7,3601.2,0.001]
[1762753346910,1.19204079,3601.7,3601.2,2.77780435]
[1762753347112,3.96850745,3601.7,3601.2,0.001]
[1762753347843,1.19204079,3601.7,3601.2,2.77785062]
[1762753348145,1.19204079,3601.7,3601.3,2.77676519]
[1762753348816,1.19204079,3601.7,3601.2,2.77781996]
[1762753349042,1.19204079,3601.7,3601.3,2.77677409]
[1762753349215,1.19204079,3601.7,3601.2,2.77782414]
[1762753350350,8.4145393,3601.7,3601.2,0.001]
[1762753352007,13.45451666,3601.7,3601.2,0.001]
[1762753352848,9.00848481,3601.7,3601.2,0.001]
[1762753354535,4.56245296,3601.7,3601.2,0.001]
[1762753354743,9.00848481,3601.7,3601.2,0.001]
[1762753357931,0.8498863,3601.7,3601.2,0.001]
[1762753358137,4.11355296,3601.7,3601.2,0.001]
[1762753358305,4.59225296,3601.7,3601.2,0.001]
[1762753363344,3.62635296,3601.7,3601.2,0.4596]
[1762753363709,0.8498863,3601.7,3601.6,0.4807]
[1762753363908,7.9656393,3601.7,3601.6,0.001]
[1762753364117,9.03828481,3601.7,3601.6,0.001]
[1762753364549,5.78311815,3601.7,3601.6,0.001]
[1762753364849,5.29591815,3601.7,3601.6,0.4807]
[1762753365018,5.78311815,3601.7,3601.6,0.001]
[1762753365252,8.55958481,3601.7,3601.6,0.001]
[1762753366385,7.96720246,3601.7,3601.6,0.001]
[1762753368785,8.45870246,3601.7,3601.6,0.001]
[1762753369243,7.96720246,3601.7,3601.6,0.001]
[1762753369657,8.45870246,3601.7,3601.6,0.001]
[1762753369855,12.90473431,3601.7,3601.6,0.001]
[1762753370068,13.49805915,3601.7,3601.6,0.001]
[1762753370985,4.60599545,3601.7,3601.6,0.001]
[1762753371297,9.0520273,3601.7,3601.6,0.001]
[1762753371473,13.49805915,3601.7,3601.6,0.001]
[1762753371808,14.75777115,3601.7,3601.6,0.001]
[1762753372080,15.49795757,3601.7,3601.6,0.001]
[1762753372260,14.75777115,3601.7,3601.6,0.001]
[1762753372456,10.3117393,3601.7,3601.6,0.001]
[1762753373072,9.8202393,3601.7,3601.6,0.001]
[1762753374705,4.88700745,3601.7,3601.6,0.4952]
[1762753374892,1.51721595,3601.7,3601.6,0.4952]
[1762753375098,8.73971446,3601.7,3601.6,0.4952]
[1762753375402,0.25750395,3601.7,3601.6,0.4952]
[1762753375602,3.03397061,3601.7,3601.6,0.4952]
[1762753376368,0.25750395,3601.7,3601.6,0.4952]
[1762753376568,3.03397061,3601.7,3601.6,0.4952]
[1762753377507,7.96960246,3601.7,3601.6,0.001]
[1762753377674,5.1931358,3601.7,3601.6,0.001]
[1762753378009,7.96960246,3601.7,3601.6,0.001]
[1762753379711,5.1931358,3601.7,3601.6,0.001]
[1762753379911,7.96960246,3601.7,3601.6,0.001]
[1762753380414,7.48000246,3601.7,3601.6,0.001]
[1762753380619,4.7035358,3601.7,3601.6,0.001]
[1762753380991,7.96960246,3601.7,3601.6,0.001]
[1762753381220,7.48000246,3601.7,3601.6,0.001]
[1762753382099,3.03397061,3601.7,3601.6,0.001]
[1762753382300,0.25750395,3601.7,3601.6,0.001]
[1762753382500,3.03397061,3601.7,3601.6,0.001]
[1762753382704,0.25750395,3601.7,3601.6,0.001]
[1762753383012,3.03397061,3601.7,3601.6,0.001]
[1762753383793,0.25750395,3601.7,3601.6,0.001]
[1762753383991,3.03397061,3601.7,3601.6,0.001]
[1762753385791,0.25750395,3601.7,3601.6,0.4952]
[1762753385994,3.03397061,3601.7,3601.6,0.4952]
[1762753388944,3.03397061,3601.7,3601.6,0.001]
[1762753390703,0.25750395,3601.7,3601.6,0.4952]
[1762753391531,3.03397061,3601.7,3601.6,0.4952]
[1762753391896,0.25750395,3601.7,3601.6,0.4952]
[1762753392204,3.03397061,3601.7,3601.6,0.4952]
[1762753392400,0.25750395,3601.7,3601.6,0.4952]
[1762753392942,3.03397061,3601.7,3601.6,0.4952]
[1762753393105,4.1513753,3601.7,3601.6,0.001]
[1762753393292,5.84232418,3601.7,3601.6,0.001]
[1762753395695,3.06585752,3601.7,3601.6,0.001]
[1762753395891,5.37652418,3601.7,3601.6,0.001]
[1762753396538,3.52357061,3601.7,3601.6,0.001]
[1762753397148,3.03397061,3601.7,3601.6,0.001]
[1762753397806,3.03397061,3601.7,3601.6,0.4952]
[1762753398949,3.03397061,3601.7,3601.6,0.001]
[1762753399157,3.52357061,3601.7,3601.6,0.001]
[1762753399453,3.98937061,3601.7,3601.6,0.001]
[1762753400331,3.52357061,3601.7,3601.6,0.001]
[1762753400661,3.03397061,3601.7,3601.6,0.001]
[1762753401133,3.52357061,3601.7,3601.6,0.001]
[1762753401335,3.98937061,3601.7,3601.6,0.001]
[1762753402957,5.84254939,3601.7,3601.6,0.001]
[1762753403159,6.58273581,3601.7,3601.6,0.001]
[1762753403456,5.84254939,3601.7,3601.6,0.001]
[1762753403757,4.03648705,3601.3,3601.2,0.001]
[1762753403943,9.72074053,3601.3,3601.2,0.001]
[1762753404150,10.46226609,3601.3,3601.2,0.001]
[1762753404349,9.72074053,3601.3,3601.2,0.001]
[1762753404944,9.72994053,3601.3,3601.2,0.001]
[1762753405848,9.72966858,3601.3,3601.2,0.001]
[1762753408963,9.84085489,3601.3,3601.2,0.001]
[1762753410396,9.25466858,3601.3,3601.2,0.001]
[1762753410891,0.257232,3601.3,3601.2,0.9487]
[1762753411271,2.77838715,3601.9,3601.2,0.9487]
[1762753411480,3.03336451,3601.8,3601.3,0.4609]
[1762753411685,0.25696427,3601.7,3601.3,0.4609]
[1762753411880,0.25696427,3601.6,3601.3,0.4609]
[1762753412079,0.002,3601.9,3601.3,0.4609]
[1762753412080,0.25696427,3601.5,3601.3,0.4609]
[1762753412281,0.002,3601.9,3601.3,0.4609]
[1762753412282,2.77660699,3601.6,3601.3,0.4609]
[1762753412456,0.25693603,3601.5,3601.4,0.4868]
[1762753412651,0.4663,3601.4,3601.2,0.001]
[1762753412852,3.03368283,3601.3,3601.2,0.001]
[1762753414406,0.25690778,3601.3,3601.2,0.6704]
[1762753414609,0.25690778,3601.3,3601.2,1.1313]
[1762753415005,3.03368283,3601.3,3601.2,1.1313]
[1762753415214,3.03368283,3601.3,3601.2,0.6704]
[1762753415409,0.25690778,3601.3,3601.2,0.4878]
[1762753415791,3.03368283,3601.3,3601.2,0.4878]
[1762753416412,3.49998283,3601.3,3601.2,0.001]
[1762753417110,3.97498283,3601.3,3601.2,0.001]
[1762753417686,3.03368283,3601.3,3601.2,0.001]
[1762753418716,3.49998283,3601.3,3601.2,0.001]
[1762753419333,3.03368283,3601.3,3601.2,0.001]
[1762753421933,3.03368283,3601.3,3601.2,0.4878]
[1762753424017,0.25690778,3601.3,3601.2,0.9487]
[1762753424637,3.03368283,3601.3,3601.2,0.9487]
[1762753424837,3.03368283,3601.3,3601.2,0.4878]
[1762753425851,0.25690778,3601.3,3601.2,0.4878]
[1762753426354,3.03368283,3601.3,3601.2,0.4878]
[1762753427215,0.25690778,3601.3,3601.2,0.4878]
[1762753427754,3.03368283,3601.3,3601.2,0.4878]
[1762753427957,0.25690778,3601.3,3601.2,0.4878]
[1762753428150,3.03368283,3601.3,3601.2,0.4878]
[1762753428818,3.03368283,3601.3,3601.2,0.001]
[1762753429436,3.03368283,3601.3,3601.2,0.4798]
[1762753429933,0.25690778,3601.3,3601.2,0.4798]
[1762753430666,3.03368283,3601.3,3601.2,0.4798]
[1762753431243,0.25690778,3601.3,3601.2,0.4798]
[1762753431461,3.03368283,3601.3,3601.2,0.4798]
[1762753432468,3.03368283,3601.3,3601.2,0.001]
[1762753432673,3.52758283,3601.3,3601.2,0.001]
[1762753433486,8.20297825,3600.9,3600.8,0.001]
[1762753433644,10.94653209,3600.9,3600.8,0.001]
[1762753433977,5.37690721,3600.9,3600.8,0.001]
[1762753434201,8.95098603,3600.9,3600.8,0.001]
[1762753434544,9.41608603,3600.9,3600.8,0.001]
[1762753438082,8.95098603,3600.9,3600.8,0.001]
[1762753440617,0.25690778,3600.9,3600.8,0.478]
[1762753440917,0.25690778,3600.9,3600.8,0.001]
[1762753440918,3.52828268,3600.9,3600.8,0.001]
[1762753441822,4.02238268,3600.9,3600.8,0.001]
[1762753444534,5.28209468,3600.9,3600.8,0.001]
[1762753444821,5.87342861,3600.9,3600.8,0.001]
[1762753445579,6.63481716,3600.9,3600.8,0.001]
[1762753446383,5.87342861,3600.9,3600.8,0.001]
[1762753449020,14.76922157,3600.9,3600.8,0.001]
[1762753450518,9.82722509,3600.9,3600.8,0.001]
[1762753450687,8.74139116,3600.9,3600.8,0.478]
[1762753451507,5.96430766,3600.9,3600.8,0.478]
[1762753451710,8.74139116,3600.9,3600.8,0.478]
[1762753452108,8.74139116,3600.9,3600.8,0.328]
[1762753452315,7.48167916,3600.9,3600.8,0.328]
[1762753452512,0.25669918,3600.9,3600.8,0.7839]
[1762753452696,4.44789648,3601.5,3600.8,0.7839]
[1762753452891,2.7768318,3601.3,3600.9,0.8120167]
[1762753453086,3.03359446,3601.2,3600.9,0.8120167]
[1762753453295,3.03361734,3601.1,3601.0,0.4559]
[1762753453495,0.25668807,3601.1,3601.0,0.4559]
[1762753453701,0.25668807,3601.1,3601.0,0.9329]
[1762753454716,4.44789648,3601.4,3601.0,0.9329]
[1762753454897,0.25668929,3601.3,3601.0,0.9329]
[1762753455105,0.25668929,3601.2,3601.0,0.4559]
[1762753455315,0.25668929,3601.2,3601.1,0.477]
[1762753455512,4.44789648,3601.4,3601.1,0.477]
[1762753455513,3.03347468,3601.3,3601.1,0.477]
[1762753455717,0.25668929,3601.2,3600.9,0.4559]
[1762753456030,0.25668929,3601.2,3601.0,0.4559]
[1762753456198,0.25668929,3601.2,3601.1,0.477]
[1762753456624,2.77685216,3601.2,3601.1,0.477]
[1762753456795,3.03354145,3601.2,3601.1,0.477]
[1762753456995,0.25668929,3601.2,3601.1,0.477]
[1762753457231,3.03346562,3601.3,3601.1,0.477]
[1762753457428,3.03354341,3601.2,3601.0,0.4559]
[1762753457607,2.77685412,3601.2,3601.0,0.4559]
[1762753457810,2.77685412,3601.2,3601.1,0.477]
[1762753457995,3.03353909,3601.2,3601.1,0.477]
[1762753458332,0.25668497,3601.2,3601.1,0.477]
[1762753458825,0.25668497,3601.3,3601.1,0.477]
[1762753459134,0.25668497,3601.2,3601.0,0.4559]
[1762753459330,2.77678539,3601.3,3601.0,0.4559]
[1762753459492,0.25669163,3601.2,3601.0,0.4559]
[1762753459690,0.25669163,3601.1,3600.4,0.001]
[1762753459927,4.70458811,3601.0,3600.5,0.4559]
[1762753460128,2.77701758,3601.0,3600.9,0.477]
[1762753460336,0.25669298,3601.0,3600.9,0.477]
[1762753460632,0.25669298,3601.0,3600.9,0.9329]
[1762753460933,3.03369936,3601.0,3600.9,0.477]
[1762753461390,3.03369936,3601.0,3600.6,0.4559]
[1762753461391,7.48159584,3601.0,3600.6,0.4559]
[1762753461590,2.77723598,3600.8,3600.6,0.4559]
[1762753461946,4.44789648,3600.8,3600.4,0.001]
[1762753462437,7.22451733,3601.5,3600.7,0.477]
[1762753462639,3.03345534,3601.4,3601.1,0.477]
[1762753462845,3.03357247,3601.3,3600.8,0.4559]
[1762753463133,3.03357247,3601.3,3601.1,0.4559]
[1762753463134,0.25675242,3601.2,3601.1,0.4559]
[1762753463433,0.25675242,3601.2,3601.1,0.3559]
[1762753463591,0.25675242,3601.2,3601.1,0.812]
[1762753463796,0.25675242,3601.2,3601.1,0.4561]
[1762753464693,0.25675242,3601.3,3601.1,0.4561]
[1762753464892,0.25675242,3601.2,3600.8,0.001]
[1762753465343,3.033687,3601.1,3600.8,0.001]
[1762753465543,2.77700776,3601.0,3600.8,0.001]
[1762753465742,2.77695687,3601.1,3600.9,0.4561]
[1762753465928,2.77680053,3601.3,3600.9,0.4561]
[1762753465929,2.77700638,3601.0,3600.9,0.4561]
[1762753466135,2.77700638,3601.0,3600.8,0.001]
[1762753466313,2.77700638,3601.0,3600.9,0.4561]
[1762753466757,2.77700638,3601.0,3600.8,0.001]
[1762753467537,2.77694103,3601.1,3600.9,0.4561]
[1762753467708,4.44789648,3601.2,3600.9,0.4561]
[1762753467709,2.77700638,3601.0,3600.9,0.4561]
[1762753468916,2.7769414,3601.1,3600.9,0.4561]
[1762753469528,2.77700638,3601.0,3600.9,0.4561]
[1762753469851,2.77694829,3601.1,3600.9,0.4561]
[1762753470352,2.77691126,3601.2,3601.1,0.4561]
[1762753470560,0.25683799,3601.2,3601.1,0.4561]
[1762753470764,3.03369015,3601.2,3601.1,0.4561]
[1762753471067,0.25683799,3601.2,3601.1,0.4561]
[1762753471636,0.25683799,3601.3,3601.1,0.4561]
[1762753471831,2.77870485,3601.4,3601.3,0.4561]
[1762753472065,3.03553312,3601.4,3601.3,0.4561]
[1762753472869,2.77681925,3601.3,3600.8,0.4571]
[1762753473336,2.77681925,3601.3,3601.2,0.4561]
[1762753473536,3.03364294,3601.3,3601.2,0.4561]
[1762753474285,3.03364294,3601.3,3600.8,0.4571]
[1762753474474,2.77681925,3601.3,3601.2,0.4561]
[1762753474651,3.03364932,3601.3,3601.2,0.4561]
[1762753475368,0.25683007,3601.3,3601.2,0.4561]
[1762753476864,0.25683007,3601.3,3601.2,0.9122]
[1762753477088,0.25696283,3601.3,3601.2,0.9122]
[1762753479584,0.25696283,3601.3,3601.2,0.4561]
[1762753479897,0.25696283,3601.3,3601.2,0.9122]
[1762753481568,0.25896283,3601.3,3601.2,0.9122]
[1762753486377,0.25896283,3601.3,3601.2,1.55882072]
[1762753486978,0.25954494,3601.3,3601.2,1.55882072]
[1762753487173,0.25954494,3601.3,3601.2,0.9122]
[1762753489406,0.25954494,3601.3,3601.2,3.68905216]
[1762753489599,0.25954494,3601.3,3601.2,0.9122]
[1762753491598,0.25954494,3601.3,3601.2,0.4561]
[1762753493095,0.25968287,3601.3,3601.2,0.4561]
[1762753494721,0.25968287,3601.3,3601.2,3.23295216]
[1762753495222,0.25968287,3601.3,3601.2,0.4561]
[1762753496225,0.002,3601.3,3601.2,6.00670929]
[1762753496411,0.002,3601.3,3601.2,10.44877745]
[1762753500554,0.002,3601.3,3601.2,16.38622961]
[1762753501398,0.002,3601.3,3601.2,11.93833313]
[1762753501598,0.002,3601.3,3601.2,16.38622961]
[1762753501798,0.002,3601.3,3601.2,11.93833313]